[Event "RUS-ch Rapid 2021"]
[Site "Sochi"]
[Date "2021.10.13"]
[Round "9.10"]
[White "Bocharov, Dmitry"]
[Black "Zubritskiy, Artyom"]
[Result "1-0"]
[ECO "A84"]
[WhiteElo "2517"]
[BlackElo "2442"]
[Annotator "RC"]
[PlyCount "132"]
[EventDate "2021.10.12"]
[EventType "swiss"]
[EventCountry "RUS"]
[SourceTitle "playchess.com"]
[Source "ChessBase"]
[SourceQuality "1"]
[TimeControl "900+10"]

1. Nf3 {[%emt 0:01:10]} f5 {[%emt 0:00:11]} 2. d4 {[%emt 0:00:04]} Nf6 {
[%emt 0:00:00]} 3. c4 {[%emt 0:00:04]} g6 {[%emt 0:00:10]} 4. e3 {[%emt 0:00:
01]} Bg7 {[%emt 0:00:00]} 5. b4 {[%emt 0:00:03]} O-O {[%emt 0:00:00]} 6. Bb2 {
[%emt 0:00:02]} d6 {[%emt 0:00:05]} 7. Be2 {[%emt 0:00:06]} e6 {[%emt 0:00:14]}
8. O-O {[%emt 0:00:08]} Qe7 {[%emt 0:00:00]} 9. Nc3 {[%emt 0:01:29]} Nc6 {
[%emt 0:00:05]} 10. b5 {[%emt 0:00:20]} Nd8 {[%emt 0:00:00]} 11. a4 {[%emt 0:
00:07]} Nf7 {[%emt 0:00:09]} 12. a5 {[%emt 0:00:10]} g5 {[%emt 0:00:52]} 13. c5
{[%emt 0:04:07]} g4 {[%emt 0:02:43]} 14. Nd2 {[%emt 0:00:32]} d5 {[%emt 0:04:
10]} 15. Ba3 {[%emt 0:00:13]} c6 {[%emt 0:00:13]} 16. a6 {[%emt 0:00:09]} bxa6
{[%emt 0:04:25]} 17. bxc6 {[%emt 0:00:44]} Ne8 {[%emt 0:00:00]} 18. Qa4 {
[%emt 0:00:40]} Nc7 {[%emt 0:00:05]} 19. Rab1 {[%emt 0:01:18]} e5 {[%emt 0:03:
30]} 20. Rb7 {[%emt 0:00:53]} Bxb7 {[%emt 0:00:00]} 21. cxb7 {[%emt 0:00:00]}
Rab8 {[%emt 0:00:04]} 22. c6 {[%emt 0:00:24]} Qh4 {[%emt 0:00:13]} 23. Qa5 {
[%emt 0:01:55]} exd4 {[%emt 0:00:06]} 24. exd4 {[%emt 0:00:13]} Bxd4 {[%emt 0:
00:01]} 25. Bxf8 {[%emt 0:01:36]} Bb6 {[%emt 0:00:53]} 26. Qa3 {[%emt 0:00:33]}
Qf6 {[%emt 0:00:41]} 27. Na4 {[%emt 0:01:04]} Qxc6 {[%emt 0:00:10]} 28. Nxb6 {
[%emt 0:00:10]} axb6 {[%emt 0:00:04]} 29. Rc1 {[%emt 0:00:29]} Qd7 {[%emt 0:00:
28]} 30. Bb4 {[%emt 0:00:14]} Rxb7 {[%emt 0:00:12]} 31. Qc3 {[%emt 0:00:07]} d4
{[%emt 0:00:22]} 32. Qb3 {[%emt 0:00:05]} a5 {[%emt 0:00:14]} 33. Bxa5 {
[%emt 0:00:18]} Ne6 {[%emt 0:00:04]} 34. Bb4 {[%emt 0:00:10]} Nf4 {[%emt 0:00:
08]} 35. Bf1 {[%emt 0:00:04]} Kg7 {[%emt 0:00:08]} 36. Ba3 {[%emt 0:00:17]} Ng5
{[%emt 0:00:11]} 37. Qb4 {[%emt 0:00:16]} Nge6 {[%emt 0:00:14]} 38. Nc4 {
[%emt 0:00:08]} Qd5 {[%emt 0:00:11]} 39. Nd6 {[%emt 0:00:26]} Rb8 {[%emt 0:00:
08]} 40. Qb5 {[%emt 0:00:25]} Qxb5 {[%emt 0:00:14]} 41. Bxb5 {[%emt 0:00:03]}
Ra8 {[%emt 0:00:06]} 42. Bb2 {[%emt 0:00:17]} Ra2 {[%emt 0:00:07]} 43. Rb1 {
[%emt 0:00:05]} Kf6 {[%emt 0:00:09]} 44. Bc4 {[%emt 0:00:16]} Ra4 {[%emt 0:00:
02]} 45. g3 {[%emt 0:00:05]} Nh3+ {[%emt 0:00:07]} 46. Kf1 {[%emt 0:00:22]}
Nhg5 {[%emt 0:00:19]} 47. Bb3 {[%emt 0:00:10]} Ra8 {[%emt 0:00:13]} 48. Bc2 {
[%emt 0:00:12]} Nf3 {[%emt 0:00:09]} 49. Bc1 {[%emt 0:00:12]} Nxh2+ {[%emt 0:
00:12]} 50. Kg2 {[%emt 0:00:02]} Nf3 {[%emt 0:00:00]} 51. Bxf5 {[%emt 0:00:05]}
h5 {[%emt 0:00:11]} 52. Be4 {[%emt 0:00:07]} Rd8 {[%emt 0:00:11]} 53. Nc4 {
[%emt 0:00:04]} Nfg5 {[%emt 0:00:17]} 54. Bxg5+ {[%emt 0:00:12]} Nxg5 {[%emt 0:
00:04]} 55. Rxb6+ {[%emt 0:00:03]} Ke7 {[%emt 0:00:02]} 56. Bf5 {[%emt 0:00:14]
} Rd5 {[%emt 0:00:14]} 57. Bd3 {[%emt 0:00:18]} Rc5 {[%emt 0:00:11]} 58. Nd2 {
[%emt 0:00:09]} Ra5 {[%emt 0:00:00]} 59. Rb5 {[%emt 0:00:08]} Rxb5 {[%emt 0:00:
29]} 60. Bxb5 {[%emt 0:00:01]} Nh7 {[%emt 0:00:19]} 61. Nb3 {[%emt 0:00:08]}
Nf6 {[%emt 0:00:07]} 62. Nxd4 {[%emt 0:00:07]} Kd6 {[%emt 0:00:02]} 63. Ne2 {
[%emt 0:00:03]} Ke5 {[%emt 0:00:01]} 64. Bd3 {[%emt 0:00:03]} Ke6 {[%emt 0:00:
29]} 65. Bg6 {[%emt 0:00:04]} Ke5 {[%emt 0:00:02]} 66. Kf1 {[%emt 0:00:03]} Kd5
{[%emt 0:00:05]} 1-0

[Event "RUS-ch Rapid 2021"]
[Site "Sochi"]
[Date "2021.10.13"]
[Round "9.11"]
[White "Murzin, Volodar"]
[Black "Grachev, Boris"]
[Result "1/2-1/2"]
[ECO "C01"]
[WhiteElo "2513"]
[BlackElo "2615"]
[Annotator "RC"]
[PlyCount "99"]
[EventDate "2021.10.12"]
[EventType "swiss"]
[EventCountry "RUS"]
[SourceTitle "playchess.com"]
[Source "ChessBase"]
[SourceQuality "1"]
[TimeControl "900+10"]

1. e4 {[%emt 0:00:00]} e6 {[%emt 0:00:57]} 2. d4 {[%emt 0:00:14]} d5 {[%emt 0:
00:00]} 3. Nc3 {[%emt 0:00:02]} Be7 {[%emt 0:00:34]} 4. Bd3 {[%emt 0:00:19]} c5
{[%emt 0:01:07]} 5. dxc5 {[%emt 0:00:05]} Nf6 {[%emt 0:00:09]} 6. exd5 {
[%emt 0:00:24]} exd5 {[%emt 0:00:09]} 7. Nf3 {[%emt 0:00:11]} O-O {[%emt 0:00:
49]} 8. O-O {[%emt 0:00:02]} Bxc5 {[%emt 0:00:04]} 9. h3 {[%emt 0:00:45]} h6 {
[%emt 0:00:25]} 10. Bf4 {[%emt 0:00:18]} Nc6 {[%emt 0:00:05]} 11. Qd2 {[%emt 0:
01:11]} Re8 {[%emt 0:00:26]} 12. Rfe1 {[%emt 0:00:33]} Be6 {[%emt 0:00:12]} 13.
Ne5 {[%emt 0:00:36]} a6 {[%emt 0:00:58]} 14. a3 {[%emt 0:00:23]} Nxe5 {[%emt 0:
01:33]} 15. Bxe5 {[%emt 0:00:04]} Nd7 {[%emt 0:00:19]} 16. Bg3 {[%emt 0:01:54]}
Nb6 {[%emt 0:01:04]} 17. Rad1 {[%emt 0:02:19]} Rc8 {[%emt 0:00:15]} 18. Ne2 {
[%emt 0:08:12]} Qg5 {[%emt 0:01:38]} 19. Bf4 {[%emt 0:00:16]} Qf6 {[%emt 0:00:
18]} 20. c3 {[%emt 0:00:14]} Bf5 {[%emt 0:01:00]} 21. Bxf5 {[%emt 0:00:20]}
Qxf5 {[%emt 0:00:00]} 22. Ng3 {[%emt 0:00:08]} Qf6 {[%emt 0:00:24]} 23. Nh5 {
[%emt 0:00:17]} Qg6 {[%emt 0:00:31]} 24. Ng3 {[%emt 0:00:03]} Nc4 {[%emt 0:03:
20]} 25. Rxe8+ {[%emt 0:00:10]} Rxe8 {[%emt 0:00:00]} 26. Qxd5 {[%emt 0:00:00]}
Nxb2 {[%emt 0:00:24]} 27. Rd2 {[%emt 0:00:11]} Na4 {[%emt 0:00:42]} 28. Qxb7 {
[%emt 0:00:19]} Nxc3 {[%emt 0:00:11]} 29. Kh2 {[%emt 0:00:14]} Qf6 {[%emt 0:01:
39]} 30. Qc7 {[%emt 0:00:13]} Bb6 {[%emt 0:00:40]} 31. Qd6 {[%emt 0:00:10]}
Qxd6 {[%emt 0:00:09]} 32. Rxd6 {[%emt 0:00:07]} Bc7 {[%emt 0:00:15]} 33. Rd4 {
[%emt 0:00:06]} Nb5 {[%emt 0:00:06]} 34. Rc4 {[%emt 0:00:06]} Bxf4 {[%emt 0:00:
11]} 35. Rxf4 {[%emt 0:00:00]} Nxa3 {[%emt 0:00:09]} 36. Ra4 {[%emt 0:00:01]}
Nb5 {[%emt 0:00:09]} 37. Rxa6 {[%emt 0:00:06]} Nd4 {[%emt 0:00:00]} 38. Rd6 {
[%emt 0:00:14]} Ne6 {[%emt 0:00:07]} 39. Rd2 {[%emt 0:00:34]} g6 {[%emt 0:00:
08]} 40. Re2 {[%emt 0:00:12]} Ra8 {[%emt 0:00:07]} 41. Nf1 {[%emt 0:00:06]} h5
{[%emt 0:00:11]} 42. h4 {[%emt 0:00:11]} Nd4 {[%emt 0:00:06]} 43. Re4 {[%emt 0:
00:09]} Nf5 {[%emt 0:00:00]} 44. g3 {[%emt 0:00:03]} Ra2 {[%emt 0:00:08]} 45.
Kg2 {[%emt 0:00:03]} Ra3 {[%emt 0:00:17]} 46. Nh2 {[%emt 0:00:18]} Nh6 {
[%emt 0:00:00]} 47. Re2 {[%emt 0:00:03]} Kg7 {[%emt 0:00:12]} 48. Nf3 {[%emt 0:
00:11]} Nf5 {[%emt 0:00:15]} 49. Rd2 {[%emt 0:00:02]} Ra7 {[%emt 0:00:04]} 50.
Nd4 {[%emt 0:00:06]} 1/2-1/2

[Event "RUS-ch Rapid 2021"]
[Site "Sochi"]
[Date "2021.10.13"]
[Round "9.12"]
[White "Pogosyan, Stefan"]
[Black "Sarana, Alexey"]
[Result "0-1"]
[ECO "A09"]
[WhiteElo "2407"]
[BlackElo "2649"]
[Annotator "RC"]
[PlyCount "90"]
[EventDate "2021.10.12"]
[EventType "swiss"]
[EventCountry "RUS"]
[SourceTitle "playchess.com"]
[Source "ChessBase"]
[SourceQuality "1"]
[TimeControl "900+10"]

1. Nf3 {[%emt 0:00:07]} d5 {[%emt 0:00:00]} 2. c4 {[%emt 0:00:03]} d4 {[%emt 0:
00:07]} 3. b4 {[%emt 0:00:00]} c5 {[%emt 0:00:04]} 4. bxc5 {[%emt 0:00:09]} Nc6
{[%emt 0:00:02]} 5. g3 {[%emt 0:00:16]} e5 {[%emt 0:00:03]} 6. d3 {[%emt 0:00:
00]} Nf6 {[%emt 0:00:00]} 7. Bg2 {[%emt 0:00:04]} Bxc5 {[%emt 0:00:06]} 8. O-O
{[%emt 0:00:00]} O-O {[%emt 0:00:03]} 9. Nfd2 {[%emt 0:02:05]} Bf5 {[%emt 0:01:
08]} 10. a4 {[%emt 0:00:11]} Qe7 {[%emt 0:00:06]} 11. Nb3 {[%emt 0:00:43]} Bb4
{[%emt 0:00:10]} 12. Na3 {[%emt 0:00:15]} e4 {[%emt 0:00:35]} 13. Nc2 {[%emt 0:
00:35]} Bc3 {[%emt 0:02:10]} 14. Ba3 {[%emt 0:00:40]} Qe5 {[%emt 0:00:03]} 15.
Bxf8 {[%emt 0:00:00]} Rxf8 {[%emt 0:00:03]} 16. Rb1 {[%emt 0:01:52]} Rd8 {
[%emt 0:00:41]} 17. Nc1 {[%emt 0:01:44]} Qe7 {[%emt 0:00:00]} 18. Na2 {[%emt 0:
01:42]} Ba5 {[%emt 0:00:07]} 19. Rb3 {[%emt 0:00:22]} h5 {[%emt 0:00:15]} 20.
Qb1 {[%emt 0:00:43]} b6 {[%emt 0:00:06]} 21. f3 {[%emt 0:02:29]} exd3 {[%emt 0:
02:10]} 22. exd3 {[%emt 0:00:00]} Ne5 {[%emt 0:00:05]} 23. Qd1 {[%emt 0:01:31]}
Nfd7 {[%emt 0:03:07]} 24. f4 {[%emt 0:02:06]} Ng4 {[%emt 0:00:07]} 25. Nab4 {
[%emt 0:00:04]} Bxb4 {[%emt 0:00:57]} 26. Rxb4 {[%emt 0:01:24]} Ne3 {[%emt 0:
00:15]} 27. Re1 {[%emt 0:00:18]} Qc5 {[%emt 0:01:22]} 28. Qd2 {[%emt 0:00:16]}
Nxc2 {[%emt 0:01:46]} 29. Rb5 {[%emt 0:00:00]} Qa3 {[%emt 0:00:00]} 30. Rxf5 {
[%emt 0:00:18]} Nxe1 {[%emt 0:00:04]} 31. Qxe1 {[%emt 0:00:09]} Nf6 {[%emt 0:
01:19]} 32. Bd5 {[%emt 0:00:11]} Qxd3 {[%emt 0:00:28]} 33. Qe7 {[%emt 0:00:10]}
Qb1+ {[%emt 0:01:02]} 34. Kg2 {[%emt 0:00:07]} Qc2+ {[%emt 0:00:00]} 35. Kg1 {
[%emt 0:00:00]} Qxf5 {[%emt 0:00:38]} 36. Qxd8+ {[%emt 0:00:02]} Kh7 {[%emt 0:
00:10]} 37. Bxf7 {[%emt 0:00:02]} Qe4 {[%emt 0:00:02]} 38. Qc8 {[%emt 0:00:39]}
d3 {[%emt 0:00:15]} 39. f5 {[%emt 0:00:00]} d2 {[%emt 0:00:27]} 40. Qd8 {
[%emt 0:00:09]} Qe1+ {[%emt 0:00:38]} 41. Kg2 {[%emt 0:00:00]} Qe2+ {[%emt 0:
00:03]} 42. Kh3 {[%emt 0:00:08]} d1=Q {[%emt 0:00:46]} 43. Bg6+ {[%emt 0:00:08]
} Kh6 {[%emt 0:00:04]} 44. Qh8+ {[%emt 0:00:09]} Kg5 {[%emt 0:00:00]} 45. Qxg7
{[%emt 0:00:02]} Qdf1# {[%emt 0:00:03]} 0-1

[Event "RUS-ch Rapid 2021"]
[Site "Sochi"]
[Date "2021.10.13"]
[Round "9.13"]
[White "Belozerov, Andrei"]
[Black "Kezin, Roman"]
[Result "1-0"]
[ECO "B40"]
[WhiteElo "2476"]
[BlackElo "2492"]
[Annotator "ChessBase"]
[PlyCount "129"]
[EventDate "2021.10.12"]
[EventType "swiss"]
[EventCountry "RUS"]
[SourceTitle "playchess.com"]
[Source "ChessBase"]
[SourceQuality "1"]
[TimeControl "900+10"]

1. e4 {[%emt 0:02:13]} c5 {[%emt 0:00:04]} 2. Nf3 {[%emt 0:00:10]} e6 {[%emt 0:
00:00]} 3. g3 {[%emt 0:00:00]} Nc6 {[%emt 0:00:02]} 4. Bg2 {[%emt 0:00:00]} Nf6
{[%emt 0:00:09]} 5. Qe2 {[%emt 0:00:07]} e5 {[%emt 0:00:00]} 6. O-O {[%emt 0:
00:08]} Be7 {[%emt 0:00:00]} 7. c3 {[%emt 0:00:07]} O-O {[%emt 0:00:00]} 8. Rd1
{[%emt 0:00:09]} Re8 {[%emt 0:00:03]} 9. d3 {[%emt 0:00:07]} h6 {[%emt 0:00:14]
} 10. Na3 {[%emt 0:00:15]} Bf8 {[%emt 0:00:03]} 11. Nc4 {[%emt 0:00:28]} d6 {
[%emt 0:00:10]} 12. a4 {[%emt 0:00:11]} Be6 {[%emt 0:00:02]} 13. h3 {[%emt 0:
02:52]} Qc7 {[%emt 0:00:16]} 14. Nh4 {[%emt 0:00:27]} d5 {[%emt 0:01:49]} 15.
Ne3 {[%emt 0:00:05]} Rad8 {[%emt 0:00:16]} 16. Ng4 {[%emt 0:00:54]} Nh7 {
[%emt 0:03:09]} 17. exd5 {[%emt 0:01:50]} Bxd5 {[%emt 0:00:28]} 18. Be4 {
[%emt 0:00:58]} Ng5 {[%emt 0:07:58]} 19. Bxg5 {[%emt 0:00:17]} hxg5 {[%emt 0:
00:00]} 20. Nf3 {[%emt 0:01:11]} Qe7 {[%emt 0:02:00]} 21. Qe3 {[%emt 0:00:10]}
f6 {[%emt 0:00:36]} 22. Bxd5+ {[%emt 0:01:44]} Rxd5 {[%emt 0:00:00]} 23. Qe4 {
[%emt 0:00:12]} Qf7 {[%emt 0:00:44]} 24. Ne3 {[%emt 0:00:11]} Rd7 {[%emt 0:00:
24]} 25. h4 {[%emt 0:00:35]} g6 {[%emt 0:00:36]} 26. a5 {[%emt 0:00:17]} a6 {
[%emt 0:00:15]} 27. hxg5 {[%emt 0:00:19]} f5 {[%emt 0:00:03]} 28. Qc4 {[%emt 0:
00:09]} Red8 {[%emt 0:00:18]} 29. Kf1 {[%emt 0:00:24]} Qxc4 {[%emt 0:00:10]}
30. Nxc4 {[%emt 0:00:08]} e4 {[%emt 0:00:05]} 31. Nfe5 {[%emt 0:00:26]} Nxe5 {
[%emt 0:00:00]} 32. Nxe5 {[%emt 0:00:00]} Rd6 {[%emt 0:00:03]} 33. f4 {[%emt 0:
01:49]} exf3 {[%emt 0:00:33]} 34. Kf2 {[%emt 0:00:46]} Bg7 {[%emt 0:00:06]} 35.
Nxf3 {[%emt 0:00:15]} Rxd3 {[%emt 0:00:00]} 36. Rxd3 {[%emt 0:00:30]} Rxd3 {
[%emt 0:00:00]} 37. Ra3 {[%emt 0:00:19]} Kf7 {[%emt 0:00:34]} 38. Rb3 {[%emt 0:
00:00]} Rd7 {[%emt 0:00:00]} 39. Rb6 {[%emt 0:00:04]} Re7 {[%emt 0:00:20]} 40.
Nh4 {[%emt 0:00:16]} Rd7 {[%emt 0:00:08]} 41. Nxg6 {[%emt 0:00:07]} c4 {
[%emt 0:00:12]} 42. Nh4 {[%emt 0:00:18]} Rd5 {[%emt 0:00:09]} 43. Rxb7+ {
[%emt 0:00:05]} Kg8 {[%emt 0:00:03]} 44. Ng6 {[%emt 0:00:06]} Rxa5 {[%emt 0:00:
06]} 45. Kf3 {[%emt 0:00:17]} Rc5 {[%emt 0:00:22]} 46. Kf4 {[%emt 0:00:11]} Ra5
{[%emt 0:00:01]} 47. Ne7+ {[%emt 0:00:04]} Kf8 {[%emt 0:00:02]} 48. Nxf5 {
[%emt 0:00:04]} Be5+ {[%emt 0:00:00]} 49. Ke4 {[%emt 0:00:12]} Rc5 {[%emt 0:00:
34]} 50. g6 {[%emt 0:00:04]} Kg8 {[%emt 0:00:10]} 51. Nh6+ {[%emt 0:00:15]} Kf8
{[%emt 0:00:02]} 52. g7+ {[%emt 0:00:09]} Bxg7 {[%emt 0:00:07]} 53. Rf7+ {
[%emt 0:00:05]} Ke8 {[%emt 0:00:00]} 54. Rxg7 {[%emt 0:00:00]} Rb5 {[%emt 0:00:
00]} 55. Rc7 {[%emt 0:00:22]} Rxb2 {[%emt 0:00:04]} 56. Rxc4 {[%emt 0:00:00]}
Rb6 {[%emt 0:00:16]} 57. Nf5 {[%emt 0:00:04]} Kf7 {[%emt 0:00:00]} 58. g4 {
[%emt 0:00:12]} Kf6 {[%emt 0:00:01]} 59. Kf4 {[%emt 0:00:05]} a5 {[%emt 0:00:
10]} 60. Nd4 {[%emt 0:00:07]} Rb1 {[%emt 0:00:05]} 61. Rc6+ {[%emt 0:00:03]}
Kf7 {[%emt 0:00:01]} 62. Ra6 {[%emt 0:00:04]} Ra1 {[%emt 0:00:01]} 63. g5 {
[%emt 0:00:07]} a4 {[%emt 0:00:03]} 64. g6+ {[%emt 0:00:09]} Kf8 {[%emt 0:00:
11]} 65. Nf5 {[%emt 0:00:00]} 1-0

[Event "RUS-ch Rapid 2021"]
[Site "Sochi"]
[Date "2021.10.13"]
[Round "9.14"]
[White "Obgolts, Erik"]
[Black "Nozdrachev, Vladislav"]
[Result "1/2-1/2"]
[ECO "C80"]
[WhiteElo "2430"]
[BlackElo "2495"]
[Annotator "ChessBase"]
[PlyCount "98"]
[EventDate "2021.10.12"]
[EventType "swiss"]
[EventCountry "RUS"]
[SourceTitle "playchess.com"]
[Source "ChessBase"]
[SourceQuality "1"]
[TimeControl "900+10"]

1. e4 {[%emt 0:00:00]} e5 {[%emt 0:00:04]} 2. Nf3 {[%emt 0:00:02]} Nc6 {
[%emt 0:00:00]} 3. Bb5 {[%emt 0:00:00]} a6 {[%emt 0:00:06]} 4. Ba4 {[%emt 0:00:
08]} Nf6 {[%emt 0:00:00]} 5. O-O {[%emt 0:00:01]} Nxe4 {[%emt 0:00:09]} 6. d4 {
[%emt 0:00:47]} b5 {[%emt 0:00:00]} 7. Bb3 {[%emt 0:00:00]} d5 {[%emt 0:00:05]}
8. dxe5 {[%emt 0:00:00]} Be6 {[%emt 0:00:00]} 9. Nc3 {[%emt 0:01:00]} Nxc3 {
[%emt 0:00:28]} 10. bxc3 {[%emt 0:00:03]} Be7 {[%emt 0:00:47]} 11. Nd4 {
[%emt 0:00:23]} Nxd4 {[%emt 0:00:35]} 12. cxd4 {[%emt 0:00:00]} c5 {[%emt 0:00:
07]} 13. c3 {[%emt 0:00:52]} c4 {[%emt 0:00:28]} 14. Bc2 {[%emt 0:00:08]} O-O {
[%emt 0:00:01]} 15. f4 {[%emt 0:00:03]} f5 {[%emt 0:00:10]} 16. exf6 {[%emt 0:
01:17]} Rxf6 {[%emt 0:01:17]} 17. f5 {[%emt 0:00:17]} Bf7 {[%emt 0:00:00]} 18.
Bf4 {[%emt 0:00:52]} a5 {[%emt 0:00:50]} 19. a3 {[%emt 0:00:31]} Qf8 {[%emt 0:
01:22]} 20. Qc1 {[%emt 0:01:09]} Rb6 {[%emt 0:03:58]} 21. Be5 {[%emt 0:00:23]}
h6 {[%emt 0:00:09]} 22. Rf3 {[%emt 0:04:40]} Bg5 {[%emt 0:01:34]} 23. Qe1 {
[%emt 0:00:06]} b4 {[%emt 0:00:24]} 24. axb4 {[%emt 0:00:57]} axb4 {[%emt 0:00:
00]} 25. Rxa8 {[%emt 0:00:13]} Qxa8 {[%emt 0:00:01]} 26. cxb4 {[%emt 0:00:00]}
Qa2 {[%emt 0:00:07]} 27. Qc3 {[%emt 0:00:59]} Be7 {[%emt 0:02:21]} 28. Rf2 {
[%emt 0:00:57]} Qa7 {[%emt 0:02:34]} 29. h3 {[%emt 0:00:46]} Bf6 {[%emt 0:00:
58]} 30. Re2 {[%emt 0:00:17]} Ra6 {[%emt 0:00:44]} 31. Bxf6 {[%emt 0:00:45]}
gxf6 {[%emt 0:00:00]} 32. Qg3+ {[%emt 0:00:24]} Kh7 {[%emt 0:00:06]} 33. Kh2 {
[%emt 0:01:40]} Ra2 {[%emt 0:00:41]} 34. Qf4 {[%emt 0:00:18]} Kg7 {[%emt 0:00:
19]} 35. Qg4+ {[%emt 0:00:34]} Kh7 {[%emt 0:00:03]} 36. Qf4 {[%emt 0:00:12]}
Kg7 {[%emt 0:00:03]} 37. b5 {[%emt 0:00:00]} Rb2 {[%emt 0:00:09]} 38. Qg4+ {
[%emt 0:00:04]} Kh7 {[%emt 0:00:03]} 39. b6 {[%emt 0:00:13]} Rxb6 {[%emt 0:00:
04]} 40. Re3 {[%emt 0:00:00]} h5 {[%emt 0:00:13]} 41. Qf4 {[%emt 0:00:13]} Qb8
{[%emt 0:00:03]} 42. Qxb8 {[%emt 0:00:08]} Rxb8 {[%emt 0:00:03]} 43. Re7 {
[%emt 0:00:00]} Kg8 {[%emt 0:00:06]} 44. Rc7 {[%emt 0:00:04]} Rb2 {[%emt 0:00:
08]} 45. Ba4 {[%emt 0:00:14]} Rd2 {[%emt 0:00:00]} 46. Rc8+ {[%emt 0:00:15]}
Kg7 {[%emt 0:00:00]} 47. Rc7 {[%emt 0:00:00]} Kf8 {[%emt 0:00:59]} 48. Rc8+ {
[%emt 0:00:03]} Kg7 {[%emt 0:00:00]} 49. Rc7 {[%emt 0:00:01]} Kf8 {[%emt 0:00:
01]} 1/2-1/2

[Event "RUS-ch Rapid 2021"]
[Site "Sochi"]
[Date "2021.10.13"]
[Round "9.15"]
[White "Triapishko, Alexandr"]
[Black "Usmanov, Vasily"]
[Result "1-0"]
[ECO "D02"]
[WhiteElo "2506"]
[BlackElo "2447"]
[Annotator "ChessBase"]
[PlyCount "71"]
[EventDate "2021.10.12"]
[EventType "swiss"]
[EventCountry "RUS"]
[SourceTitle "playchess.com"]
[Source "ChessBase"]
[SourceQuality "1"]
[TimeControl "900+10"]

1. Nf3 {[%emt 0:01:18]} d5 {[%emt 0:00:00]} 2. g3 {[%emt 0:00:02]} Nd7 {
[%emt 0:00:06]} 3. d4 {[%emt 0:00:00]} Nb6 {[%emt 0:00:10]} 4. Bg2 {[%emt 0:00:
32]} Bf5 {[%emt 0:00:00]} 5. a4 {[%emt 0:00:23]} a5 {[%emt 0:00:00]} 6. O-O {
[%emt 0:00:07]} e6 {[%emt 0:00:04]} 7. Ne5 {[%emt 0:00:12]} Nf6 {[%emt 0:00:10]
} 8. f3 {[%emt 0:00:36]} h6 {[%emt 0:00:31]} 9. e4 {[%emt 0:00:03]} Bh7 {
[%emt 0:00:10]} 10. Be3 {[%emt 0:00:06]} Be7 {[%emt 0:00:00]} 11. Nd2 {[%emt 0:
00:18]} O-O {[%emt 0:00:05]} 12. Qe2 {[%emt 0:00:25]} Nfd7 {[%emt 0:03:54]} 13.
Nd3 {[%emt 0:04:25]} Qc8 {[%emt 0:01:13]} 14. Qf2 {[%emt 0:00:31]} c6 {[%emt 0:
00:51]} 15. b3 {[%emt 0:01:58]} Qc7 {[%emt 0:01:22]} 16. c4 {[%emt 0:00:44]}
Rad8 {[%emt 0:02:33]} 17. Rac1 {[%emt 0:03:27]} Nf6 {[%emt 0:00:18]} 18. Qe2 {
[%emt 0:00:37]} Qb8 {[%emt 0:00:33]} 19. c5 {[%emt 0:01:00]} Nbd7 {[%emt 0:00:
36]} 20. e5 {[%emt 0:00:16]} Ne8 {[%emt 0:00:07]} 21. b4 {[%emt 0:00:36]} b6 {
[%emt 0:00:15]} 22. Nb3 {[%emt 0:00:29]} Bxd3 {[%emt 0:00:21]} 23. Qxd3 {
[%emt 0:00:00]} axb4 {[%emt 0:00:00]} 24. cxb6 {[%emt 0:00:29]} Nxb6 {[%emt 0:
00:10]} 25. Na5 {[%emt 0:00:06]} Rd7 {[%emt 0:01:04]} 26. Nxc6 {[%emt 0:00:05]}
Qa8 {[%emt 0:00:00]} 27. Qb5 {[%emt 0:00:25]} Nc4 {[%emt 0:00:05]} 28. Bf2 {
[%emt 0:00:21]} Bg5 {[%emt 0:01:29]} 29. f4 {[%emt 0:00:01]} Nc7 {[%emt 0:00:
11]} 30. Qxb4 {[%emt 0:00:22]} Qxc6 {[%emt 0:00:15]} 31. fxg5 {[%emt 0:00:02]}
Na6 {[%emt 0:00:23]} 32. Qb5 {[%emt 0:00:06]} Qxb5 {[%emt 0:00:34]} 33. axb5 {
[%emt 0:00:00]} Nc7 {[%emt 0:00:00]} 34. gxh6 {[%emt 0:00:08]} Nxb5 {[%emt 0:
00:14]} 35. hxg7 {[%emt 0:00:02]} Ra8 {[%emt 0:00:00]} 36. Rxc4 {[%emt 0:00:02]
} 1-0

[Event "RUS-ch Rapid 2021"]
[Site "Sochi"]
[Date "2021.10.13"]
[Round "9.16"]
[White "Popov, Valerij"]
[Black "Pershin, Denis"]
[Result "1-0"]
[ECO "D38"]
[WhiteElo "2537"]
[BlackElo "2388"]
[Annotator "ChessBase"]
[PlyCount "72"]
[EventDate "2021.10.12"]
[EventType "swiss"]
[EventCountry "RUS"]
[SourceTitle "playchess.com"]
[Source "ChessBase"]
[SourceQuality "1"]
[TimeControl "900+10"]

1. c4 {[%emt 0:00:00]} Nf6 {[%emt 0:00:09]} 2. Nf3 {[%emt 0:00:10]} e6 {
[%emt 0:00:02]} 3. Nc3 {[%emt 0:00:05]} d5 {[%emt 0:00:05]} 4. d4 {[%emt 0:00:
04]} Bb4 {[%emt 0:00:03]} 5. cxd5 {[%emt 0:00:03]} exd5 {[%emt 0:00:07]} 6. Bg5
{[%emt 0:00:00]} h6 {[%emt 0:00:03]} 7. Bh4 {[%emt 0:00:00]} O-O {[%emt 0:00:
41]} 8. e3 {[%emt 0:00:10]} Bf5 {[%emt 0:00:07]} 9. Qa4 {[%emt 0:00:50]} c5 {
[%emt 0:02:40]} 10. dxc5 {[%emt 0:00:03]} Nc6 {[%emt 0:00:45]} 11. Bb5 {
[%emt 0:00:00]} g5 {[%emt 0:03:39]} 12. Bxc6 {[%emt 0:02:03]} Bxc3+ {[%emt 0:
00:06]} 13. bxc3 {[%emt 0:00:00]} bxc6 {[%emt 0:00:00]} 14. Nxg5 {[%emt 0:01:
20]} hxg5 {[%emt 0:00:07]} 15. Bxg5 {[%emt 0:00:00]} Kg7 {[%emt 0:00:35]} 16.
Qf4 {[%emt 0:01:50]} Kg6 {[%emt 0:00:09]} 17. g4 {[%emt 0:00:24]} Bc2 {[%emt 0:
03:13]} 18. h4 {[%emt 0:00:24]} Re8 {[%emt 0:01:49]} 19. h5+ {[%emt 0:00:52]}
Kg7 {[%emt 0:00:25]} 20. h6+ {[%emt 0:00:14]} Kh7 {[%emt 0:00:46]} 21. Bxf6 {
[%emt 0:00:02]} Qd7 {[%emt 0:00:02]} 22. f3 {[%emt 0:03:34]} Bg6 {[%emt 0:00:
52]} 23. Bd4 {[%emt 0:00:41]} Qe7 {[%emt 0:00:03]} 24. Kf2 {[%emt 0:00:46]}
Rab8 {[%emt 0:00:01]} 25. Kg3 {[%emt 0:00:13]} a5 {[%emt 0:00:26]} 26. Rh2 {
[%emt 0:00:26]} a4 {[%emt 0:00:14]} 27. Rah1 {[%emt 0:00:21]} a3 {[%emt 0:01:
12]} 28. Rh5 {[%emt 0:00:12]} Rg8 {[%emt 0:01:05]} 29. Re5 {[%emt 0:01:10]} Qd8
{[%emt 0:00:00]} 30. Rf5 {[%emt 0:00:13]} Qe7 {[%emt 0:00:00]} 31. Rf6 {
[%emt 0:00:02]} Rb2 {[%emt 0:00:11]} 32. Rh2 {[%emt 0:00:00]} Rxh2 {[%emt 0:00:
14]} 33. Kxh2 {[%emt 0:00:01]} Ra8 {[%emt 0:00:14]} 34. Kg3 {[%emt 0:00:22]}
Ra7 {[%emt 0:00:35]} 35. Rxc6 {[%emt 0:00:04]} Rb7 {[%emt 0:00:03]} 36. Rc8 {
[%emt 0:00:10]} Qd8 {[%emt 0:00:17]} 1-0